fUST/lending_fUST_20260508
["ID","MTS","AMOUNT","RATE_DAILY","PERIOD"]
[421827108,1778191847000,-500.0,0.00011506,2]
[421827102,1778191847000,-500.0,0.00011506,2]
[421827112,1778191847000,-688.32,0.00011506,2]
[421827071,1778191847000,-500.0,0.00011506,2]
[421827073,1778191847000,-681.26,0.00011506,2]
[421827078,1778191847000,-500.0,0.00011506,2]
[421827079,1778191847000,-352.62734058,0.00011506,2]
[421827077,1778191847000,-1319.49,0.00011506,2]
[421827075,1778191847000,-500.0,0.00011506,2]
[421827074,1778191847000,-500.0,0.00011506,2]
[421827076,1778191847000,-500.0,0.00011506,2]
[421827080,1778191847000,-500.0,0.00011506,2]
[421827105,1778191847000,-500.0,0.00011506,2]
[421827085,1778191847000,-628.77,0.00011506,2]
[421827089,1778191847000,-500.0,0.00011506,2]
[421827088,1778191847000,-363.96,0.00011506,2]
[421827087,1778191847000,-315.87,0.00011506,2]
[421827091,1778191847000,-500.0,0.00011506,2]
[421827081,1778191847000,-500.0,0.00011506,2]
[421827094,1778191847000,-712.68,0.00011506,2]
[421827093,1778191847000,-266.85,0.00011506,2]
[421827092,1778191847000,-1303.23,0.00011506,2]
[421827097,1778191847000,-507.66,0.00011506,2]
[421827086,1778191847000,-500.0,0.00011506,2]
[421827095,1778191847000,-659.02,0.00011506,2]
[421827098,1778191847000,-162.32,0.00011506,2]
[421827096,1778191847000,-1306.93,0.00011506,2]
[421827100,1778191847000,-500.0,0.00011506,2]
[421827103,1778191847000,-677.29,0.00011506,2]
[421827104,1778191847000,-500.0,0.00011506,2]
[421827090,1778191847000,-523.23,0.00011506,2]
[421827110,1778191847000,-3392.94,0.00011506,2]
[421827179,1778191848000,-645.0,0.00011752,2]
[421827175,1778191848000,-393.28,0.00011506,2]
[421827181,1778191848000,-442.0,0.00011752,2]
[421827177,1778191848000,-232.597,0.00011752,2]
[421827178,1778191848000,-253.521,0.00011752,2]
[421827176,1778191848000,-587.0,0.00011512,2]
[421827174,1778191848000,-4265.41,0.00011506,2]
[421827170,1778191848000,-500.0,0.00011506,2]
[421827173,1778191848000,-279.86,0.00011506,2]
[421827180,1778191848000,-2215.0,0.00011752,2]
[421827172,1778191848000,-606.37,0.00011506,2]
[421827182,1778191848000,-185.0,0.00011752,2]
[421827171,1778191848000,-500.0,0.00011506,2]
[421827183,1778191848000,-38834.06387706,0.00011757,2]
[421827202,1778191848000,-321.96,0.0001178,2]
[421827184,1778191848000,-1637.95070956,0.0001176,2]
[421827193,1778191848000,-500.0,0.0001178,2]
[421827185,1778191848000,-2169.228,0.0001178,2]
[421827186,1778191848000,-500.0,0.0001178,2]
[421827187,1778191848000,-500.0,0.0001178,2]
[421827191,1778191848000,-500.0,0.0001178,2]
[421827189,1778191848000,-290.49,0.0001178,2]
[421827190,1778191848000,-500.0,0.0001178,2]
[421827188,1778191848000,-500.0,0.0001178,2]
[421827194,1778191848000,-681.26,0.0001178,2]
[421827196,1778191848000,-500.0,0.0001178,2]
[421827198,1778191848000,-544.81,0.0001178,2]
[421827197,1778191848000,-500.0,0.0001178,2]
[421827168,1778191848000,-2391.9,0.00011506,2]
[421827192,1778191848000,-500.0,0.0001178,2]
[421827169,1778191848000,-2079.98,0.00011506,2]
[421827138,1778191848000,-778.31,0.00011506,2]
[421827160,1778191848000,-682.81,0.00011506,2]
[421827140,1778191848000,-1770.86,0.00011506,2]
[421827206,1778191848000,-712.68,0.0001178,2]
[421827141,1778191848000,-500.0,0.00011506,2]
[421827139,1778191848000,-3198.95,0.00011506,2]
[421827142,1778191848000,-989.74,0.00011506,2]
[421827136,1778191848000,-770.59,0.00011506,2]
[421827137,1778191848000,-16654.95,0.00011506,2]
[421827143,1778191848000,-220.18,0.00011506,2]
[421827145,1778191848000,-778.64,0.00011506,2]
[421827146,1778191848000,-762.22,0.00011506,2]
[421827147,1778191848000,-695.48,0.00011506,2]
[421827152,1778191848000,-500.0,0.00011506,2]
[421827149,1778191848000,-500.0,0.00011506,2]
[421827153,1778191848000,-756.67,0.00011506,2]
[421827159,1778191848000,-604.84,0.00011506,2]
[421827148,1778191848000,-1352.67,0.00011506,2]
[421827154,1778191848000,-346.47,0.00011506,2]
[421827150,1778191848000,-500.0,0.00011506,2]
[421827151,1778191848000,-827.02,0.00011506,2]
[421827161,1778191848000,-952.1,0.00011506,2]
[421827162,1778191848000,-624.56,0.00011506,2]
[421827166,1778191848000,-1469.38,0.00011506,2]
[421827155,1778191848000,-1738.82,0.00011506,2]
[421827164,1778191848000,-500.0,0.00011506,2]
[421827163,1778191848000,-500.0,0.00011506,2]
[421827167,1778191848000,-1431.35,0.00011506,2]
[421827165,1778191848000,-500.0,0.00011506,2]
[421827156,1778191848000,-500.0,0.00011506,2]
[421827157,1778191848000,-939.8,0.00011506,2]
[421827158,1778191848000,-616.1,0.00011506,2]
[421827144,1778191848000,-500.0,0.00011506,2]
[421827199,1778191848000,-500.0,0.0001178,2]
[421827209,1778191848000,-507.66,0.0001178,2]
[421827205,1778191848000,-1303.23,0.0001178,2]
[421827246,1778191848000,-1770.86,0.0001178,2]
[421827237,1778191848000,-535.6,0.0001178,2]
[421827235,1778191848000,-3106.43,0.0001178,2]
[421827248,1778191848000,-989.74,0.0001178,2]
[421827240,1778191848000,-500.0,0.0001178,2]
[421827245,1778191848000,-3198.95,0.0001178,2]
[421827239,1778191848000,-1960.73,0.0001178,2]
[421827238,1778191848000,-500.0,0.0001178,2]
[421827242,1778191848000,-770.59,0.0001178,2]
[421827241,1778191848000,-546.98,0.0001178,2]
[421827244,1778191848000,-778.31,0.0001178,2]
[421827243,1778191848000,-16654.95,0.0001178,2]
[421827249,1778191848000,-500.0,0.0001178,2]
[421827256,1778191848000,-827.02,0.0001178,2]
[421827247,1778191848000,-500.0,0.0001178,2]
[421827250,1778191848000,-778.64,0.0001178,2]
[421827253,1778191848000,-1352.67,0.0001178,2]
[421827261,1778191848000,-939.8,0.0001178,2]
[421827258,1778191848000,-756.67,0.0001178,2]
[421827252,1778191848000,-695.48,0.0001178,2]
[421827251,1778191848000,-762.22,0.0001178,2]
[421827260,1778191848000,-500.0,0.0001178,2]
[421827254,1778191848000,-500.0,0.0001178,2]
[421827259,1778191848000,-1738.82,0.0001178,2]
[421827257,1778191848000,-348.25,0.0001178,2]
[421827263,1778191848000,-682.81,0.0001178,2]
[421827262,1778191848000,-616.1,0.0001178,2]
[421827266,1778191848000,-500.0,0.0001178,2]
[421827264,1778191848000,-952.1,0.0001178,2]
[421827265,1778191848000,-500.0,0.0001178,2]
[421827203,1778191848000,-523.23,0.0001178,2]
[421827236,1778191848000,-500.0,0.0001178,2]
[421827255,1778191848000,-500.0,0.0001178,2]
[421827228,1778191848000,-836.11,0.0001178,2]
[421827234,1778191848000,-959.78,0.0001178,2]
[421827195,1778191848000,-1319.49,0.0001178,2]
[421827200,1778191848000,-628.77,0.0001178,2]
[421827204,1778191848000,-500.0,0.0001178,2]
[421827208,1778191848000,-1306.93,0.0001178,2]
[421827218,1778191848000,-3392.94,0.0001178,2]
[421827207,1778191848000,-659.02,0.0001178,2]
[421827220,1778191848000,-688.32,0.0001178,2]
[421827219,1778191848000,-1008.56,0.0001178,2]
[421827210,1778191848000,-500.0,0.0001178,2]
[421827212,1778191848000,-500.0,0.0001178,2]
[421827215,1778191848000,-625.92,0.0001178,2]
[421827213,1778191848000,-500.0,0.0001178,2]
[421827217,1778191848000,-518.36,0.0001178,2]
[421827201,1778191848000,-500.0,0.0001178,2]
[421827216,1778191848000,-500.0,0.0001178,2]
[421827233,1778191848000,-939.14,0.0001178,2]
[421827231,1778191848000,-2402.85,0.0001178,2]
[421827211,1778191848000,-677.29,0.0001178,2]
[421827225,1778191848000,-611.4,0.0001178,2]
[421827229,1778191848000,-500.0,0.0001178,2]
[421827226,1778191848000,-1090.69,0.0001178,2]
[421827227,1778191848000,-1277.97,0.0001178,2]
[421827232,1778191848000,-590.33,0.0001178,2]
[421827224,1778191848000,-1523.57,0.0001178,2]
[421827230,1778191848000,-1014.62,0.0001178,2]
[421827221,1778191848000,-596.88,0.0001178,2]
[421827214,1778191848000,-500.0,0.0001178,2]
[421827222,1778191848000,-1073.84,0.0001178,2]
[421827223,1778191848000,-1352.72,0.0001178,2]
[421827276,1778191849000,-2169.228,0.00012054,2]
[421827273,1778191849000,-1560.0,0.00011788,2]
[421827274,1778191849000,-864.0,0.00011868,2]
[421827270,1778191849000,-2079.98,0.0001178,2]
[421827272,1778191849000,-4265.41,0.0001178,2]
[421827267,1778191849000,-1469.38,0.0001178,2]
[421827269,1778191849000,-2391.9,0.0001178,2]
[421827268,1778191849000,-1431.35,0.0001178,2]
[421827271,1778191849000,-606.37,0.0001178,2]
[421827275,1778191849000,-163967.59236421,0.00012,2]
[421827278,1778191849000,-500.0,0.00012054,2]
[421827287,1778191849000,-500.0,0.00012054,2]
[421827280,1778191849000,-500.0,0.00012054,2]
[421827279,1778191849000,-500.0,0.00012054,2]
[421827286,1778191849000,-500.0,0.00012054,2]
[421827289,1778191849000,-500.0,0.00012054,2]
[421827290,1778191849000,-628.77,0.00012054,2]
[421827285,1778191849000,-1319.49,0.00012054,2]
[421827288,1778191849000,-544.81,0.00012054,2]
[421827283,1778191849000,-500.0,0.00012054,2]
[421827281,1778191849000,-500.0,0.00012054,2]
[421827282,1778191849000,-500.0,0.00012054,2]
[421827277,1778191849000,-500.0,0.00012054,2]
[421827284,1778191849000,-681.26,0.00012054,2]
[421827398,1778191850000,-1352.72,0.00012328,2]
[421827396,1778191850000,-596.88,0.00012328,2]
[421827401,1778191850000,-1090.69,0.00012328,2]
[421827400,1778191850000,-611.4,0.00012328,2]
[421827391,1778191850000,-500.0,0.00012328,2]
[421827392,1778191850000,-518.36,0.00012328,2]
[421827395,1778191850000,-688.32,0.00012328,2]
[421827394,1778191850000,-1008.56,0.00012328,2]
[421827393,1778191850000,-3392.94,0.00012328,2]
[421827402,1778191850000,-1277.97,0.00012328,2]
[421827399,1778191850000,-1523.57,0.00012328,2]
[421827403,1778191850000,-836.11,0.00012328,2]
[421827397,1778191850000,-1073.84,0.00012328,2]
[421827383,1778191850000,-712.68,0.00012328,2]
[421827407,1778191850000,-590.33,0.00012328,2]
[421827405,1778191850000,-1014.62,0.00012328,2]
[421827415,1778191850000,-500.0,0.00012328,2]
[421827409,1778191850000,-959.78,0.00012328,2]
[421827406,1778191850000,-2402.85,0.00012328,2]
[421827408,1778191850000,-939.14,0.00012328,2]
[421827412,1778191850000,-535.6,0.00012328,2]
[421827413,1778191850000,-500.0,0.00012328,2]
[421827414,1778191850000,-1960.73,0.00012328,2]
[421827411,1778191850000,-500.0,0.00012328,2]
[421827410,1778191850000,-3106.43,0.00012328,2]
[421827417,1778191850000,-770.59,0.00012328,2]
[421827427,1778191850000,-695.48,0.00012328,2]
[421827404,1778191850000,-500.0,0.00012328,2]
[421827384,1778191850000,-659.02,0.00012328,2]
[421827428,1778191850000,-1352.67,0.00012328,2]
[421827381,1778191850000,-500.0,0.00012328,2]
[421827359,1778191850000,-2079.98,0.00012054,2]
[421827360,1778191850000,-606.37,0.00012054,2]
[421827362,1778191850000,-187.8527755,0.00012087,2]
[421827363,1778191850000,-444.765,0.00012087,2]
[421827366,1778191850000,-500.0,0.00012328,2]
[421827364,1778191850000,-1603.82118804,0.00012197,2]
[421827365,1778191850000,-2169.228,0.00012328,2]
[421827361,1778191850000,-4265.41,0.00012054,2]
[421827376,1778191850000,-500.0,0.00012328,2]
[421827368,1778191850000,-500.0,0.00012328,2]
[421827377,1778191850000,-544.81,0.00012328,2]
[421827367,1778191850000,-500.0,0.00012328,2]
[421827369,1778191850000,-500.0,0.00012328,2]
[421827386,1778191850000,-507.66,0.00012328,2]
[421827370,1778191850000,-500.0,0.00012328,2]
[421827372,1778191850000,-500.0,0.00012328,2]
[421827375,1778191850000,-500.0,0.00012328,2]
[421827373,1778191850000,-681.26,0.00012328,2]
[421827374,1778191850000,-1319.49,0.00012328,2]
[421827378,1778191850000,-500.0,0.00012328,2]
[421827388,1778191850000,-677.29,0.00012328,2]
[421827387,1778191850000,-500.0,0.00012328,2]
[421827379,1778191850000,-628.77,0.00012328,2]
[421827382,1778191850000,-1303.23,0.00012328,2]
[421827385,1778191850000,-1306.93,0.00012328,2]
[421827380,1778191850000,-523.23,0.00012328,2]
[421827390,1778191850000,-625.92,0.00012328,2]
[421827389,1778191850000,-500.0,0.00012328,2]
[421827371,1778191850000,-500.0,0.00012328,2]
[421827416,1778191850000,-546.98,0.00012328,2]
[421827449,1778191850000,-2276.37,0.00012329,2]
[421827419,1778191850000,-778.31,0.00012328,2]
[421827455,1778191850000,-325.7282484,0.00012537,2]
[421827456,1778191850000,-456.3275978,0.00012537,2]
[421827454,1778191850000,-151.0,0.00012537,2]
[421827462,1778191850000,-500.0,0.00012602,2]
[421827460,1778191850000,-160.0,0.00012582,3]
[421827464,1778191850000,-500.0,0.00012602,2]
[421827465,1778191850000,-289.83,0.00012602,2]
[421827457,1778191850000,-151.0,0.00012537,2]
[421827458,1778191850000,-151.0,0.00012537,2]
[421827461,1778191850000,-2169.228,0.00012602,2]
[421827466,1778191850000,-500.0,0.00012602,2]
[421827459,1778191850000,-151.0,0.00012537,2]
[421827468,1778191850000,-500.0,0.00012602,2]
[421827476,1778191850000,-523.23,0.00012602,2]
[421827469,1778191850000,-681.26,0.00012602,2]
[421827477,1778191850000,-500.0,0.00012602,2]
[421827479,1778191850000,-712.68,0.00012602,2]
[421827467,1778191850000,-336.83,0.00012602,2]
[421827478,1778191850000,-1303.23,0.00012602,2]
[421827470,1778191850000,-1319.49,0.00012602,2]
[421827475,1778191850000,-628.77,0.00012602,2]
[421827471,1778191850000,-500.0,0.00012602,2]
[421827472,1778191850000,-500.0,0.00012602,2]
[421827473,1778191850000,-544.81,0.00012602,2]
[421827474,1778191850000,-500.0,0.00012602,2]
[421827481,1778191850000,-1306.93,0.00012602,2]
[421827420,1778191850000,-3198.95,0.00012328,2]
[421827448,1778191850000,-2731.65,0.00012329,2]
[421827444,1778191850000,-606.37,0.00012328,2]
[421827463,1778191850000,-500.0,0.00012602,2]
[421827446,1778191850000,-3933.57,0.00012329,2]
[421827443,1778191850000,-2079.98,0.00012328,2]
[421827418,1778191850000,-16654.95,0.00012328,2]
[421827423,1778191850000,-989.74,0.00012328,2]
[421827424,1778191850000,-500.0,0.00012328,2]
[421827425,1778191850000,-778.64,0.00012328,2]
[421827426,1778191850000,-762.22,0.00012328,2]
[421827422,1778191850000,-500.0,0.00012328,2]
[421827421,1778191850000,-1770.86,0.00012328,2]
[421827429,1778191850000,-553.91,0.00012328,2]
[421827430,1778191850000,-500.0,0.00012328,2]
[421827431,1778191850000,-827.02,0.00012328,2]
[421827433,1778191850000,-1738.82,0.00012328,2]
[421827434,1778191850000,-500.0,0.00012328,2]
[421827435,1778191850000,-939.8,0.00012328,2]
[421827432,1778191850000,-756.67,0.00012328,2]
[421827445,1778191850000,-4265.41,0.00012328,2]
[421827447,1778191850000,-3277.98,0.00012329,2]
[421827439,1778191850000,-500.0,0.00012328,2]
[421827442,1778191850000,-2391.9,0.00012328,2]
[421827452,1778191850000,-164.77,0.00012437,2]
[421827453,1778191850000,-151.0,0.00012537,2]
[421827451,1778191850000,-1560.0,0.00012336,2]
[421827440,1778191850000,-1469.38,0.00012328,2]
[421827450,1778191850000,-1896.98,0.00012329,2]
[421827480,1778191850000,-659.02,0.00012602,2]
[421827437,1778191850000,-682.81,0.00012328,2]
[421827436,1778191850000,-616.1,0.00012328,2]
[421827438,1778191850000,-952.1,0.00012328,2]
[421827441,1778191850000,-1431.35,0.00012328,2]
[421827522,1778191851000,-762.22,0.00012602,2]
[421827524,1778191851000,-1352.67,0.00012602,2]
[421827526,1778191851000,-827.02,0.00012602,2]
[421827521,1778191851000,-778.64,0.00012602,2]
[421827523,1778191851000,-695.48,0.00012602,2]
[421827530,1778191851000,-939.8,0.00012602,2]
[421827510,1778191851000,-1960.73,0.00012602,2]
[421827520,1778191851000,-152.0,0.00012602,2]
[421827514,1778191851000,-16654.95,0.00012602,2]
[421827515,1778191851000,-778.31,0.00012602,2]
[421827516,1778191851000,-3198.95,0.00012602,2]
[421827527,1778191851000,-756.67,0.00012602,2]
[421827519,1778191851000,-989.74,0.00012602,2]
[421827529,1778191851000,-500.0,0.00012602,2]
[421827554,1778191851000,-500.0,0.00012876,2]
[421827525,1778191851000,-500.0,0.00012602,2]
[421827531,1778191851000,-616.1,0.00012602,2]
[421827541,1778191851000,-695.15121178,0.00012652,2]
[421827532,1778191851000,-682.81,0.00012602,2]
[421827540,1778191851000,-4265.41,0.00012602,2]
[421827534,1778191851000,-500.0,0.00012602,2]
[421827542,1778191851000,-403.0,0.00012663,2]
[421827535,1778191851000,-1469.38,0.00012602,2]
[421827539,1778191851000,-606.37,0.00012602,2]
[421827536,1778191851000,-1431.35,0.00012602,2]
[421827538,1778191851000,-2079.98,0.00012602,2]
[421827537,1778191851000,-2391.9,0.00012602,2]
[421827544,1778191851000,-601.48700222,0.00012741,2]
[421827509,1778191851000,-500.0,0.00012602,2]
[421827528,1778191851000,-1738.82,0.00012602,2]
[421827513,1778191851000,-770.59,0.00012602,2]
[421827489,1778191851000,-3392.94,0.00012602,2]
[421827512,1778191851000,-546.98,0.00012602,2]
[421827484,1778191851000,-677.29,0.00012602,2]
[421827555,1778191851000,-500.0,0.00012876,2]
[421827491,1778191851000,-688.32,0.00012602,2]
[421827485,1778191851000,-500.0,0.00012602,2]
[421827486,1778191851000,-625.92,0.00012602,2]
[421827482,1778191851000,-507.66,0.00012602,2]
[421827483,1778191851000,-500.0,0.00012602,2]
[421827490,1778191851000,-1008.56,0.00012602,2]
[421827488,1778191851000,-518.36,0.00012602,2]
[421827487,1778191851000,-402.22,0.00012602,2]
[421827492,1778191851000,-596.88,0.00012602,2]
[421827494,1778191851000,-1352.72,0.00012602,2]
[421827504,1778191851000,-939.14,0.00012602,2]
[421827505,1778191851000,-959.78,0.00012602,2]
[421827493,1778191851000,-1073.84,0.00012602,2]
[421827496,1778191851000,-611.4,0.00012602,2]
[421827495,1778191851000,-1523.57,0.00012602,2]
[421827497,1778191851000,-1090.69,0.00012602,2]
[421827498,1778191851000,-1277.97,0.00012602,2]
[421827499,1778191851000,-836.11,0.00012602,2]
[421827503,1778191851000,-590.33,0.00012602,2]
[421827500,1778191851000,-500.0,0.00012602,2]
[421827501,1778191851000,-1014.62,0.00012602,2]
[421827502,1778191851000,-2402.85,0.00012602,2]
[421827506,1778191851000,-3106.43,0.00012602,2]
[421827507,1778191851000,-500.0,0.00012602,2]
[421827511,1778191851000,-500.0,0.00012602,2]
[421827517,1778191851000,-1770.86,0.00012602,2]
[421827508,1778191851000,-535.6,0.00012602,2]
[421827518,1778191851000,-500.0,0.00012602,2]
[421827543,1778191851000,-437.35429072,0.0001274,2]
[421827533,1778191851000,-952.1,0.00012602,2]
[421827556,1778191851000,-544.81,0.00012876,2]
[421827575,1778191851000,-1073.84,0.00012876,2]
[421827573,1778191851000,-688.32,0.00012876,2]
[421827576,1778191851000,-1352.72,0.00012876,2]
[421827585,1778191851000,-590.33,0.00012876,2]
[421827588,1778191851000,-3106.43,0.00012876,2]
[421827590,1778191851000,-535.6,0.00012876,2]
[421827589,1778191851000,-500.0,0.00012876,2]
[421827593,1778191851000,-500.0,0.00012876,2]
[421827586,1778191851000,-939.14,0.00012876,2]
[421827595,1778191851000,-770.59,0.00012876,2]
[421827587,1778191851000,-959.78,0.00012876,2]
[421827594,1778191851000,-546.98,0.00012876,2]
[421827597,1778191851000,-778.31,0.00012876,2]
[421827598,1778191851000,-3198.95,0.00012876,2]
[421827577,1778191851000,-1523.57,0.00012876,2]
[421827591,1778191851000,-500.0,0.00012876,2]
[421827610,1778191851000,-500.0,0.00012876,2]
[421827612,1778191851000,-616.1,0.00012876,2]
[421827611,1778191851000,-939.8,0.00012876,2]
[421827599,1778191851000,-1770.86,0.00012876,2]
[421827609,1778191851000,-1738.82,0.00012876,2]
[421827600,1778191851000,-567.89,0.00012876,2]
[421827601,1778191851000,-989.74,0.00012876,2]
[421827605,1778191851000,-1352.67,0.00012876,2]
[421827602,1778191851000,-778.64,0.00012876,2]
[421827603,1778191851000,-762.22,0.00012876,2]
[421827604,1778191851000,-695.48,0.00012876,2]
[421827608,1778191851000,-756.67,0.00012876,2]
[421827606,1778191851000,-500.0,0.00012876,2]
[421827546,1778191851000,-2169.228,0.00012876,2]
[421827596,1778191851000,-16654.95,0.00012876,2]
[421827574,1778191851000,-596.88,0.00012876,2]
[421827592,1778191851000,-1960.73,0.00012876,2]
[421827571,1778191851000,-3392.94,0.00012876,2]
[421827545,1778191851000,-156.76,0.00012817,2]
[421827547,1778191851000,-500.0,0.00012876,2]
[421827551,1778191851000,-404.11,0.00012876,2]
[421827549,1778191851000,-500.0,0.00012876,2]
[421827553,1778191851000,-1319.49,0.00012876,2]
[421827550,1778191851000,-500.0,0.00012876,2]
[421827552,1778191851000,-681.26,0.00012876,2]
[421827572,1778191851000,-1008.56,0.00012876,2]
[421827557,1778191851000,-500.0,0.00012876,2]
[421827567,1778191851000,-677.29,0.00012876,2]
[421827561,1778191851000,-1303.23,0.00012876,2]
[421827558,1778191851000,-628.77,0.00012876,2]
[421827566,1778191851000,-500.0,0.00012876,2]
[421827607,1778191851000,-827.02,0.00012876,2]
[421827568,1778191851000,-500.0,0.00012876,2]
[421827548,1778191851000,-500.0,0.00012876,2]
[421827563,1778191851000,-659.02,0.00012876,2]
[421827579,1778191851000,-1090.69,0.00012876,2]
[421827560,1778191851000,-500.0,0.00012876,2]
[421827582,1778191851000,-500.0,0.00012876,2]
[421827584,1778191851000,-2402.85,0.00012876,2]
[421827580,1778191851000,-1277.97,0.00012876,2]
[421827581,1778191851000,-836.11,0.00012876,2]
[421827583,1778191851000,-1014.62,0.00012876,2]
[421827564,1778191851000,-1306.93,0.00012876,2]
[421827559,1778191851000,-523.23,0.00012876,2]
[421827570,1778191851000,-518.36,0.00012876,2]
[421827565,1778191851000,-507.66,0.00012876,2]
[421827562,1778191851000,-712.68,0.00012876,2]
[421827569,1778191851000,-625.92,0.00012876,2]
[421827578,1778191851000,-611.4,0.00012876,2]
[421827635,1778191852000,-622.06039237,0.00013,2]
[421827623,1778191852000,-3191.07611306,0.00012922,2]
[421827627,1778191852000,-38000.0,0.00012971,3]
[421827625,1778191852000,-38000.0,0.00012962,3]
[421827622,1778191852000,-1560.0,0.00012884,2]
[421827624,1778191852000,-160.14,0.00012953,2]
[421827621,1778191852000,-4265.41,0.00012876,2]
[421827618,1778191852000,-1431.35,0.00012876,2]
[421827614,1778191852000,-952.1,0.00012876,2]
[421827616,1778191852000,-1469.38,0.00012876,2]
[421827615,1778191852000,-500.0,0.00012876,2]
[421827619,1778191852000,-2079.98,0.00012876,2]
[421827617,1778191852000,-2391.9,0.00012876,2]
[421827613,1778191852000,-682.81,0.00012876,2]
[421827629,1778191852000,-500.0,0.00012973,2]
[421827620,1778191852000,-606.37,0.00012876,2]
[421827626,1778191852000,-38000.0,0.00012971,3]
[421827633,1778191852000,-978.13732109,0.00013,2]
[421827630,1778191852000,-2674.72004219,0.00012996,2]
[421827628,1778191852000,-10462.44763978,0.00012971,3]
[421827644,1778191852000,-857.10461354,0.00013043,7]
[421827645,1778191852000,-294.37464747,0.00013044,7]
[421827646,1778191852000,-744.51985752,0.00013054,2]
[421827642,1778191852000,-5506.18315904,0.00013008,7]
[421827641,1778191852000,-160.0,0.00013,7]
[421827640,1778191852000,-160.0,0.00013,3]
[421827647,1778191852000,9000.0,0.00019178,120]
[421827643,1778191852000,-1648.55299833,0.0001304,2]
[421827637,1778191852000,-6157.16058632,0.00013,2]
[421827638,1778191852000,-8510.6994514,0.00013,3]
[421827636,1778191852000,-655.29141536,0.00013,2]
[421827632,1778191852000,-2964.69468935,0.00013,2]
[421827634,1778191852000,-1782.89478354,0.00013,2]
[421827639,1778191852000,-138.50314486,0.00013,3]
[421827631,1778191852000,-59099.99143039,0.00013,2]
[421827649,1778191890000,1106.37,0.00019178,120]
[421827735,1778193035000,-1074.2142006,9.681e-05,2]
[421827734,1778193035000,-1061.08462036,9.681e-05,2]
[421827863,1778193038000,-300.0,0.00010282,2]
[421827850,1778193038000,-300.0,0.00010282,2]
[421827844,1778193038000,-300.0,0.00010282,2]
[421827846,1778193038000,-300.0,0.00010282,2]
[421827853,1778193038000,-300.0,0.00010282,2]
[421827859,1778193038000,-300.0,0.00010282,2]
[421827848,1778193038000,-300.0,0.00010282,2]
[421827855,1778193038000,-300.0,0.00010282,2]
[421827861,1778193038000,-300.0,0.00010282,2]
[421827842,1778193038000,-11275.39440084,0.0001,2]
[421827877,1778193038000,-1833623.67373622,0.00010858,2]
[421827871,1778193038000,-300.0,0.00010282,2]
[421827865,1778193038000,-300.0,0.00010282,2]
[421827881,1778193038000,-1544.2926,0.00010958,2]
[421827869,1778193038000,-300.0,0.00010282,2]
[421827883,1778193038000,-500.0,0.00010958,2]
[421827873,1778193038000,-600.0,0.00010282,2]
[421827875,1778193038000,-151.5,0.00010684,2]
[421827867,1778193038000,-300.0,0.00010282,2]
[421827857,1778193038000,-300.0,0.00010282,2]
[421827885,1778193038000,-500.0,0.00010958,2]